[Event "Romanian Superliga 2024"]
[Site "Mamaia"]
[Date "2024.10.02"]
[Round "5.4"]
[White "Gavrilescu, David"]
[Black "Nanu, Costica-Ciprian"]
[Result "0-1"]
[ECO "B07"]
[WhiteElo "2547"]
[BlackElo "2525"]
[Annotator "TA"]
[PlyCount "170"]
[EventDate "2024.09.26"]
[EventType "team-tourn"]
[EventCountry "ROU"]
[SourceTitle "playchess.com"]
[Source "ChessBase"]
[SourceQuality "1"]
[TimeControl "40/5400+30:1800+30"]

{[%evp 103,170,0,0,0,0,0,0,0,0,0,0,0,0,0,0,0,0,0,0,0,0,0,0,0,0,0,0,0,0,0,0,0,0,0,0,0,0,-2,-3,-8,-8,-8,-8,-13,-26,-26,-26,-916,-906,-876,-28,-28,-20,-83,-104,-801,-280,-720,-608,-4188,-4188,-4181,-4181,-4181,-3495,-3469,-2028,-1959,-1633]} 1. e4 {[%emt 0:00:23]} d6 {[%emt 0:00:32]} 2. d4 {[%emt 0:00:35]} Nf6 {[%emt 0:01:08]} 3. Nc3 {[%emt 0:00:30]} g6 {[%emt 0:00:06]} 4. Bf4 {[%emt 0:01:37]} c6 {[%emt 0:01:08]} 5. e5 {[%emt 0:05:49]} Nh5 {[%emt 0:03:17]} 6. Be3 {[%emt 0:02:12] B07: Pirc Defence: Miscellaneous Systems.} dxe5 {[%emt 0:03:40]} 7. dxe5 {[%emt 0:00:21]} Qxd1+ $146 {[%emt 0:00:16]} ({Predecessor:} 7... Qa5 8. Qd2 Qxe5 9. O-O-O Qc7 10. Be2 Nd7 11. Bxh5 gxh5 12. Nf3 Bg7 13. Rhe1 Qa5 {½-½ Feher,T (2187)-Ianov,V (2408) Nyiregyhaza op 2004 (8)}) 8. Rxd1 {[%emt 0:00:06]} Nd7 {[%emt 0:03:06]} 9. Nf3 {[%emt 0:08:13]} Ng7 {[%emt 0:04:24]} 10. Bc4 {[%emt 0:04:40]} h6 {[%emt 0:08:46]} 11. a4 {[%emt 0:12:10]} Nb6 {[%emt 0:04:33]} 12. Be2 {[%emt 0:27:29]} Bg4 {[%emt 0:02:08]} 13. a5 {[%emt 0:13:42]} Nd7 {[%emt 0:00:36]} 14. e6 {[%emt 0:04:30]} Bxe6 {[%emt 0:03:24]} 15. Nd4 {[%emt 0:00:04]} Nf5 {[%emt 0:06:12]} 16. a6 {[%emt 0:01:55]} bxa6 {[%emt 0:01:41]} 17. Nxe6 {[%emt 0:06:02]} fxe6 {[%emt 0:00:37]} 18. Bc1 {[%emt 0:00:52]} Bg7 {[%emt 0:01:02]} 19. Ne4 {[%emt 0:00:06]} Nd4 {[%emt 0:02:19]} 20. c3 {[%emt 0:02:50]} Nxe2 {[%emt 0:01:23]} 21. Kxe2 {[%emt 0:00:01]} Rb8 {[%emt 0:00:52]} 22. Rd3 {[%emt 0:01:30]} Rb5 {[%emt 0:03:28]} 23. Rhd1 {[%emt 0:02:24]} Rd5 {[%emt 0:11:32]} 24. c4 {[%emt 0:00:27]} Rxd3 {[%emt 0:00:45]} 25. Rxd3 {[%emt 0:00:01]} Ne5 {[%emt 0:00:42]} 26. Ra3 {[%emt 0:00:19]} Nxc4 {[%emt 0:00:45]} 27. Rxa6 {[%emt 0:00:02]} Nd6 {[%emt 0:09:22]} 28. Nxd6+ {[%emt 0:03:03]} exd6 {[%emt 0:00:05]} 29. Rxa7 {[%emt 0:00:04]} Bd4 {[%emt 0:02:06]} 30. Rb7 {[%emt 0:02:11]} O-O {[%emt 0:01:54]} 31. f3 {[%emt 0:00:24]} Rf7 {[%emt 0:00:20]} 32. Rb4 {[%emt 0:01:22]} c5 {[%emt 0:03:50]} 33. Rb6 {[%emt 0:00:16]} Be5 {[%emt 0:01:44]} 34. f4 {[%emt 0:00:09]} Bxf4 {[%emt 0:00:21]} 35. Bxf4 {[%emt 0:00:01]} Rxf4 {[%emt 0:00:06]} 36. Rxd6 {[%emt 0:00:04]} Rb4 {[%emt 0:04:21]} 37. Rxe6 {[%emt 0:00:55]} Rxb2+ {[%emt 0:00:07]} 38. Kf3 {[%emt 0:00:03]} Kf7 {[%emt 0:00:06]} 39. Rc6 {[%emt 0:00:04]} Rc2 {[%emt 0:01:31]} 40. g4 {[%emt 0:00:00]} Rc3+ {[%emt 0:00:00]} 41. Ke4 {[%emt 0:04:00]} Rc4+ {[%emt 0:03:23]} 42. Kf3 {[%emt 0:01:08]} h5 {[%emt 0:06:03]} 43. g5 {[%emt 0:03:33]} Rc1 {[%emt 0:02:43]} 44. Rf6+ {[%emt 0:01:13]} Kg7 {[%emt 0:00:04]} 45. Rc6 {[%emt 0:00:04]} c4 {[%emt 0:01:24]} 46. Rc7+ {[%emt 0:06:45]} Kf8 {[%emt 0:00:16]} 47. Ke4 {[%emt 0:02:25]} c3 {[%emt 0:00:52]} 48. Kd3 {[%emt 0:01:02]} Rg1 {[%emt 0:07:13]} 49. Rc5 {[%emt 0:05:05]} Rg2 {[%emt 0:04:43]} 50. Kxc3 {[%emt 0:02:28]} Rxh2 {[%emt 0:00:11]} 51. Kd3 {[%emt 0:00:16]} Rh4 {[%emt 0:02:02]} 52. Ke3 {[%emt 0:00:21]} Kf7 {[%emt 0:00:43]} 53. Kf3 {[%emt 0:00:06]} Rd4 {[%emt 0:00:48]} 54. Ke3 {[%emt 0:00:27]} Ra4 {[%emt 0:01:51]} 55. Kf3 {[%emt 0:00:26]} Ra6 {[%emt 0:01:58]} 56. Ke4 {[%emt 0:01:06]} Ke6 {[%emt 0:00:38]} 57. Re5+ $1 {[%emt 0:00:25]} Kd6 {[%emt 0:00:27]} 58. Rd5+ {[%emt 0:01:11]} Ke7 {[%emt 0:00:12]} 59. Rb5 $1 {[%emt 0:00:06]} Re6+ {[%emt 0:00:30]} 60. Kf4 {[%emt 0:00:25]} Kd6 {[%emt 0:00:22]} 61. Ra5 {[%emt 0:01:07]} Kc6 {[%emt 0:00:42]} 62. Kf3 {[%emt 0:00:06]} Kb6 {[%emt 0:01:33]} 63. Rd5 $1 {[%emt 0:00:06]} Rc6 {[%emt 0:00:11]} 64. Re5 {[%emt 0:00:31]} Rc3+ {[%emt 0:01:49]} 65. Kf4 {[%emt 0:00:05]} Rc4+ {[%emt 0:00:07]} 66. Kf3 {[%emt 0:00:04]} Kc7 {[%emt 0:00:12]} 67. Re7+ {[%emt 0:00:28]} Kb6 {[%emt 0:00:16]} 68. Re5 {[%emt 0:00:04]} Rc5 {[%emt 0:00:45]} 69. Re6+ {[%emt 0:00:34]} Rc6 {[%emt 0:00:03]} 70. Re5 {[%emt 0:00:07]} Kc7 {[%emt 0:02:11]} 71. Ra5 {[%emt 0:00:11]} Kd6 {[%emt 0:00:16]} 72. Kf4 {[%emt 0:00:10]} Rc4+ {[%emt 0:00:06]} 73. Kf3 $1 {[%emt 0:00:13]} Rc5 {[%emt 0:01:13]} 74. Ra6+ {[%emt 0:00:04]} Rc6 {[%emt 0:00:02]} 75. Ra5 $2 {[%emt 0:00:06][%mdl 8192]} (75. Rxc6+ $11 Kxc6 76. Ke4) 75... Ke6 $19 {[%emt 0:00:04]} 76. Ke4 {[%emt 0:01:46] [#]} Rc4+ $1 {[%emt 0:00:04]} 77. Ke3 $1 {[%emt 0:00:04]} Rc1 {[%emt 0:01:00]} 78. Ke2 {[%emt 0:05:53]} (78. Kf4 $11 {keeps the balance.}) 78... Rc3 $17 {[%emt 0:01:06]} 79. Rb5 $2 {[%emt 0:00:04][%mdl 8192]} (79. Kd2 $17 Rc7 80. Ke3) 79... Ra3 $2 {[%emt 0:01:15]} (79... Rc8 {Hoping for ...Rd8.} 80. Ke3 Rf8) 80. Rc5 $2 {[%emt 0:00:05]} (80. Kd2) 80... Ra7 $19 {[%emt 0:04:39]} 81. Kf3 {[%emt 0:08:20]} Rf7+ {[%emt 0:00:27]} 82. Kg3 {[%emt 0:00:40]} Rd7 {[%emt 0:00:36]} 83. Kf4 {[%emt 0:00:27]} Rd4+ {[%emt 0:00:10]} 84. Kg3 {[%emt 0:00:41]} Rd5 {[%emt 0:00:05]} 85. Rc6+ {[%emt 0:00:24]} Kf5 {[%emt 0:00:04]} 0-1

[Event "Romanian Superliga 2024"]
[Site "Mamaia"]
[Date "2024.10.02"]
[Round "5.5"]
[White "Ilinca, Felix-Antonio"]
[Black "Jianu, Vlad-Cristian"]
[Result "1-0"]
[ECO "B30"]
[WhiteElo "2417"]
[BlackElo "2478"]
[Annotator "TA"]
[PlyCount "81"]
[EventDate "2024.09.26"]
[EventType "team-tourn"]
[EventCountry "ROU"]
[SourceTitle "playchess.com"]
[Source "ChessBase"]
[SourceQuality "1"]
[TimeControl "40/5400+30:1800+30"]

{[%evp 21,81,10,22,16,20,24,24,33,39,40,51,37,47,32,37,45,67,27,93,96,90,61,38,24,90,91,127,82,112,103,125,114,114,88,101,107,90,85,124,127,188,200,187,0,471,470,29982,989,29972,199,203,197,209,137,244,261,218,12,19,22,1518,1443]} 1. e4 {[%emt 0:00:17]} c5 {[%emt 0:00:31]} 2. Nf3 {[%emt 0:00:32]} Nc6 {[%emt 0:00:07]} 3. Bc4 {[%emt 0:00:31]} Nf6 {[%emt 0:00:16]} 4. e5 {[%emt 0:00:32]} Ng4 {[%emt 0:00:07]} 5. Qe2 {[%emt 0:00:24]} f6 {[%emt 0:00:23]} 6. exf6 {[%emt 0:00:44] B30: Sicilian: 2...Nc6 3 Bb5, lines without ...g6.} Nxf6 {[%emt 0:00:07]} 7. O-O {[%emt 0:00:39]} e6 {[%emt 0:00:23]} 8. c3 {[%emt 0:00:54]} d5 {[%emt 0:00:20]} 9. Bb3 {[%emt 0:00:30]} Bd6 {[%emt 0:00:09]} 10. d4 {[%emt 0:00:57]} O-O {[%emt 0:00:21]} 11. dxc5 $146 {[%emt 0:02:15]} ({Predecessor:} 11. Bg5 Bd7 12. Rd1 Qe8 13. dxc5 Bxc5 14. c4 Ng4 15. Bh4 Qh5 16. Bg3 Ne7 17. Bc2 {1-0 Dau,K (2309)-Mamedov,E (2321) Budapest Vezerkepzo GM New Year 2024 (5)}) 11... Bxc5 {[%emt 0:00:07]} 12. Be3 {[%emt 0:01:06]} Bd6 {[%emt 0:00:06]} 13. Nbd2 {[%emt 0:06:57]} Bd7 {[%emt 0:00:22]} 14. c4 {[%emt 0:01:44]} Qe8 {[%emt 0:03:08]} 15. Rfe1 {[%emt 0:04:18]} Qh5 {[%emt 0:15:50]} 16. h3 {[%emt 0:03:01]} Rae8 {[%emt 0:07:17]} 17. Rad1 {[%emt 0:04:28]} a6 {[%emt 0:03:31]} 18. a3 {[%emt 0:03:24]} Kh8 {[%emt 0:04:47]} 19. Ba2 {[%emt 0:07:39]} h6 {[%emt 0:03:20]} (19... Ne7 $11) 20. Nf1 $16 {[%emt 0:10:56]} b5 {[%emt 0:09:09]} 21. cxd5 {[%emt 0:10:09]} exd5 {[%emt 0:00:53]} 22. Ng3 {[%emt 0:03:40]} Qf7 {[%emt 0:11:02]} (22... Bxg3 $11 {keeps the balance.} 23. fxg3 d4 24. Nxd4 Qxe2 25. Rxe2 Nxd4 26. Rxd4 Re5) 23. Qd3 {[%emt 0:04:30]} Be6 {[%emt 0:11:38]} 24. Nf5 {[%emt 0:06:18]} Bxf5 {[%emt 0:03:26]} 25. Qxf5 {[%emt 0:02:02]} Rd8 {[%emt 0:00:17]} 26. Nd4 {[%emt 0:06:43]} (26. Bxd5 Nxd5 27. Qxf7 (27. Qxd5 $2 Bh2+ 28. Kxh2 Rxd5 $19) 27... Rxf7 $17) 26... Ne7 {[%emt 0:07:34]} 27. Qd3 {[%emt 0:02:09]} Ng6 {[%emt 0:04:09]} 28. Ne6 {[%emt 0:04:37]} (28. Nf5 {simplifies} Rfe8 29. Nxd6 Rxd6 30. Bd4) 28... Qxe6 {[%emt 0:00:38]} 29. Qxg6 {[%emt 0:00:07]} Qe5 {[%emt 0:02:34]} 30. g3 {[%emt 0:03:39]} Qxb2 {[%emt 0:00:48]} (30... Qe8 $16 {was called for.} 31. Qf5 Qe5) 31. Bb1 $1 $18 {[%emt 0:00:57]} Rde8 {[%emt 0:04:32]} 32. Kg2 $2 {[%emt 0:00:45]} (32. Rxd5 $18 Bxg3 33. Rd7 (33. fxg3 $2 Qc3 $19)) 32... Be5 $2 {[%emt 0:03:09][%mdl 8192]} (32... Rxe3 $1 $11 {and Black has nothing to worry.} 33. Rxe3 Ne4 34. Bxe4 dxe4 (34... Qxf2+ $2 35. Kh1 $18)) 33. Bf5 $18 {[%emt 0:04:39]} (33. Bc5 Kg8 34. Bf5 (34. Bxf8 Rxf8 35. Bf5 Kh8 $18) 34... Qa2) 33... Bc3 {[%emt 0:01:55]} (33... Bxg3 $18 34. Bd4 (34. Kxg3 Qxa3 35. Kg2 Qe7 $18) 34... Qxd4 35. Rxd4 Rxe1 36. Qxg3 (36. Kxg3 $2 Rg1+ 37. Kf3 Rxg6 $19) 36... Re7) 34. Bc1 {[%emt 0:04:04]} (34. Bxh6 $142 gxh6 35. Re6 (35. Qxh6+ Kg8 $18) 35... Qc2 36. Qxh6+ (36. Bxc2 Rxe6 37. Qxh6+ Kg8 $18) 36... Kg8 37. Qg6+ (37. Bxc2 Rxe6 $18) (37. Rxe8 Qxf2+ 38. Kxf2 Rxe8 $18) 37... Kh8 38. Rxf6 (38. Bxc2 Rxe6 $18) (38. Rxe8 Rxe8 39. Bxc2 Re7 $18) 38... Qxf5 39. Rxf5) 34... Qb3 {[%emt 0:01:22]} 35. Rxe8 $2 {[%emt 0:00:43]} (35. Bxh6 $1 {mates} gxh6 36. Re6 (36. Qxh6+ Kg8 $18) 36... Rxe6 37. Qxh6+ Kg8 38. Bxe6+ Rf7 39. Qg6+ (39. Bxf7+ Kxf7 40. Rd3 b4 $16) 39... Kh8 40. Qxf7 (40. Rb1 Qa4 $18)) 35... Rxe8 $18 {[%emt 0:00:07] [#]} 36. Rd3 $1 {[%emt 0:00:15]} ({And not} 36. Bxh6 gxh6 37. Rd3 (37. Qxh6+ Kg8 $11) 37... Qxa3 $14) 36... Qc4 {[%emt 0:01:19]} 37. Rf3 {[%emt 0:00:20]} Qc7 {[%emt 0:01:59] [#]} (37... Re7 $16 {was worth a try.}) 38. g4 $1 $18 {[%emt 0:01:24]} Be5 {[%emt 0:00:51]} 39. g5 $2 {[%emt 0:00:30]} ({White should play} 39. Bd2 $18) 39... hxg5 $1 $11 {[%emt 0:00:53]} (39... Qxc1 $2 {perishes.} 40. gxf6 Qg5+ 41. Qxg5 hxg5 42. f7 $18) 40. Bxg5 {[%emt 0:00:00]} Qe7 $2 {[%emt 0:00:00][%mdl 8192]} (40... Re7 $11) 41. Re3 {[%emt 0:10:28]} 1-0

[Event "Romanian Superliga 2024"]
[Site "Mamaia"]
[Date "2024.10.02"]
[Round "5.6"]
[White "Tudor, Henry Edward"]
[Black "Magold, Filip"]
[Result "1-0"]
[ECO "D94"]
[WhiteElo "2347"]
[BlackElo "2406"]
[Annotator "TA"]
[PlyCount "65"]
[EventDate "2024.09.26"]
[EventType "team-tourn"]
[EventCountry "ROU"]
[SourceTitle "playchess.com"]
[Source "ChessBase"]
[SourceQuality "1"]
[TimeControl "40/5400+30:1800+30"]

{[%evp 21,65,0,0,-5,3,0,12,19,17,-24,50,38,63,34,61,13,87,81,79,97,106,61,305,275,330,332,418,357,337,337,384,297,461,428,423,414,601,359,846,819,5106,4990,5489,5457,6391,5839]} 1. d4 {[%emt 0:00:05]} Nf6 {[%emt 0:00:27]} 2. c4 {[%emt 0:00:21]} g6 {[%emt 0:00:04]} 3. Nc3 {[%emt 0:01:24]} d5 {[%emt 0:00:48]} 4. cxd5 {[%emt 0:00:48]} Nxd5 {[%emt 0:00:12]} 5. e3 {[%emt 0:00:11][%cal Be2e3,Be3d4,Bd4d5][%mdl 32]} Bg7 {[%emt 0:01:24]} 6. Bc4 {[%emt 0:00:06]} Nb6 {[%emt 0:03:54]} 7. Bb3 {[%emt 0:00:06]} O-O {[%emt 0:00:05]} 8. Nf3 {[%emt 0:00:31]} c5 {[%emt 0:04:39]} 9. O-O {[%emt 0:00:58]} cxd4 {[%emt 0:02:10]} 10. exd4 {[%emt 0:00:05]} Nc6 {[%emt 0:03:55]} 11. d5 {[%emt 0:00:04]} Na5 {[%emt 0:00:22]} 12. h3 {[%emt 0:04:12] Prevents Bg4.} Nxb3 {[%emt 0:04:54]} 13. axb3 {[%emt 0:00:42]} Bxc3 {[%emt 0:02:17]} 14. bxc3 {[%emt 0:00:07][%cal Bb2c3,Bc3c4][%mdl 32] aiming for Bh6. The position is equal.} Qxd5 {[%emt 0:00:02]} 15. Qe2 {[%emt 0:10:22]} Bf5 {[%emt 0:16:01]} (15... Qxb3 $11 16. Qxe7 Nd5) 16. c4 $14 {[%emt 0:03:15][%mdl 1024] White has compensation.} Qe6 {[%emt 0:08:19]} 17. Be3 {[%emt 0:11:25]} Nd7 {[%emt 0:13:57] Black is weak on the dark squares} 18. Qb2 {[%emt 0:18:34]} (18. Rxa7 $2 Rxa7 19. Qb2 Ra6 $19) (18. Rfe1 $14 {was preferrable.}) 18... Rfd8 {[%emt 0:06:41]} (18... Rfe8 $11) 19. Rfe1 $1 $16 {[%emt 0:04:21] White is more active.} ({Much worse is} 19. Rxa7 $6 Rxa7 20. Bxa7 b6 $11) 19... f6 {[%emt 0:06:29] [#] Dodges Bg5} 20. Bc5 $1 {[%emt 0:06:41]} Be4 {[%emt 0:08:10]} (20... Nxc5 21. Rxe6) 21. Bxa7 {[%emt 0:02:25] And now Nd4 would win.} Rxa7 $2 {[%emt 0:00:10] Loses the game.} 22. Rxa7 $18 {[%emt 0:00:28]} Nc5 {[%emt 0:00:00]} 23. Qa3 {[%emt 0:11:43]} Qf5 {[%emt 0:05:52]} 24. Ra8 {[%emt 0:03:42]} Rxa8 {[%emt 0:00:06]} 25. Qxa8+ {[%emt 0:00:03]} Kf7 {[%emt 0:00:05]} 26. Re3 {[%emt 0:01:17]} b6 {[%emt 0:08:12]} (26... h5 $142 27. Qa5 Ne6 28. Qxf5 Bxf5) 27. Qd8 {[%emt 0:02:34]} Ne6 {[%emt 0:02:31]} 28. Qxb6 {[%emt 0:04:15]} Nf4 {[%emt 0:00:01]} (28... Bxf3 $142 29. Rxf3 Qb1+ 30. Kh2 Qb2) 29. Qb5 {[%emt 0:00:31]} e5 $2 {[%emt 0:00:01] [#]} (29... Qxb5 30. cxb5 Ba8) 30. Nh4 {[%emt 0:00:12] White is clearly winning.} Qg5 {[%emt 0:00:31]} 31. Qd7+ {[%emt 0:01:16]} Kg8 {[%emt 0:00:00]} 32. Rxe4 {[%emt 0:01:36]} Qxh4 {[%emt 0:00:08]} 33. Re1 {[%emt 0:00:35] Weighted Error Value: White=0.51/Black=0.68.  Loses game:     	---       	Black=1      Mistake:       	White=1     	Black=5      Inaccurate:     	White=3     	Black=2      OK:         	White=5     	Black=5      Best:        	---       	Black=1      Strong:       	White=1     	---} 1-0

[Event "Romanian Superliga 2024"]
[Site "Mamaia"]
[Date "2024.10.02"]
[Round "5.8"]
[White "Tarlev, Konstantin"]
[Black "Vanczak, Tamas"]
[Result "0-1"]
[ECO "B41"]
[WhiteElo "2579"]
[BlackElo "2401"]
[Annotator "TA"]
[PlyCount "56"]
[EventDate "2024.09.26"]
[EventType "team-tourn"]
[EventCountry "ROU"]
[SourceTitle "playchess.com"]
[Source "ChessBase"]
[SourceQuality "1"]
[TimeControl "40/5400+30:1800+30"]

{[%evp 14,56,54,44,59,66,62,61,61,60,43,30,41,0,0,-89,-89,-83,-81,-176,-164,-175,-152,-156,-130,-129,-102,-91,-94,-100,-93,-112,-104,-114,-108,-128,-125,-129,-105,-133,-134,-131,-133,-771,-772]} 1. d4 {[%emt 0:04:01]} Nf6 {[%emt 0:00:08]} 2. c4 {[%emt 0:00:06]} e6 {[%emt 0:00:06]} 3. Nf3 {[%emt 0:00:08]} c5 {[%emt 0:00:22]} 4. Nc3 {[%emt 0:01:16]} cxd4 {[%emt 0:00:56]} 5. Nxd4 {[%emt 0:00:12]} a6 {[%emt 0:03:38]} 6. e4 {[%emt 0:03:04]} Qc7 {[%emt 0:00:10]} 7. Be2 {[%emt 0:02:16]} b6 {[%emt 0:04:10]} 8. Be3 {[%emt 0:11:43]} Bb7 {[%emt 0:01:53]} 9. f3 {[%emt 0:00:11]} Nc6 {[%emt 0:05:23]} 10. Qd2 {[%emt 0:09:19]} Bc5 {[%emt 0:16:08] White is slightly better.} 11. O-O-O {[%emt 0:02:35]} O-O {[%emt 0:01:59]} 12. Kb1 {[%emt 0:18:45]} Rfd8 {[%emt 0:03:27]} 13. Na4 {[%emt 0:07:37]} d6 {[%emt 0:08:42]} 14. g4 {[%emt 0:04:30]} (14. Nc2 $11 {remains equal.}) 14... Nxd4 {[%emt 0:03:26]} 15. Bxd4 {[%emt 0:02:15]} Nxe4 {[%emt 0:01:20]} 16. Qc2 {[%emt 0:12:33] [#]} (16. fxe4 $17 Bxe4+ 17. Bd3 Bxh1 18. Bxg7 Kxg7 19. Qg5+ Kf8 20. Qh6+ Ke7 21. Qh4+ Kd7 22. Rxh1) 16... Bxd4 $1 $19 {[%emt 0:04:01]} 17. Rxd4 {[%emt 0:00:05]} Nc5 {[%emt 0:00:15]} 18. Rhd1 {[%emt 0:00:21]} Nxa4 {[%emt 0:00:59]} 19. Qxa4 {[%emt 0:00:04]} d5 {[%emt 0:00:19]} 20. f4 {[%emt 0:00:18]} dxc4 {[%emt 0:10:50]} 21. Qxc4 {[%emt 0:01:53]} Qe7 {[%emt 0:01:26]} 22. Qd3 {[%emt 0:11:44]} Rd5 {[%emt 0:04:23]} 23. Rxd5 {[%emt 0:00:18]} Bxd5 {[%emt 0:00:10]} 24. Bf3 {[%emt 0:00:06]} Rd8 {[%emt 0:01:38][%cal Od5a2] And now ...Bxa2+! would win.} 25. b3 {[%emt 0:05:10]} Qb7 {[%emt 0:05:27][%cal Od5e4] ...Be4! is the strong threat.} 26. Kb2 {[%emt 0:00:41]} Qc7 {[%emt 0:01:08]} 27. Qd4 {[%emt 0:00:50]} h6 {[%emt 0:00:54]} 28. Rd2 $2 {[%emt 0:01:50][%mdl 8192] [#]} (28. h4 $17) 28... Rc8 $1 {[%emt 0:00:30] Weighted Error Value: White=0.55/Black=0.06 (flawless) .  Loses game:     	White=1     	---        Mistake:       	White=2     	---        Inaccurate:     	White=1     	---        OK:         	White=5     	Black=9      Best:        	White=1     	---        Strong:       	---       	Black=1} 0-1

[Event "Romanian Superliga 2024"]
[Site "Mamaia"]
[Date "2024.10.02"]
[Round "5.9"]
[White "Anton, Teodor"]
[Black "Serban, Cristian-Stefan"]
[Result "1/2-1/2"]
[ECO "E36"]
[WhiteElo "2427"]
[BlackElo "2269"]
[Annotator "RC"]
[PlyCount "58"]
[EventDate "2024.09.26"]
[EventType "team-tourn"]
[EventCountry "ROU"]
[SourceTitle "playchess.com"]
[Source "ChessBase"]
[SourceQuality "1"]
[TimeControl "40/5400+30:1800+30"]

1. d4 {[%emt 0:00:05]} Nf6 {[%emt 0:00:10]} 2. c4 {[%emt 0:00:05]} e6 {[%emt 0:00:05]} 3. Nc3 {[%emt 0:00:09]} Bb4 {[%emt 0:00:17]} 4. Qc2 {[%emt 0:00:17]} d5 {[%emt 0:00:16]} 5. a3 {[%emt 0:00:07]} Bxc3+ {[%emt 0:00:09]} 6. Qxc3 {[%emt 0:00:04]} O-O {[%emt 0:00:08]} 7. Nf3 {[%emt 0:01:07]} b6 {[%emt 0:00:18]} 8. Bg5 {[%emt 0:00:16]} dxc4 {[%emt 0:00:06]} 9. Qxc4 {[%emt 0:00:02]} Ba6 {[%emt 0:00:06]} 10. Qa4 {[%emt 0:00:15]} h6 {[%emt 0:00:09]} 11. Bh4 {[%emt 0:00:39]} c5 {[%emt 0:00:06]} 12. dxc5 {[%emt 0:01:12]} bxc5 {[%emt 0:00:05]} 13. Rd1 {[%emt 0:01:01]} Qb6 {[%emt 0:02:41]} 14. Bxf6 {[%emt 0:00:13]} gxf6 {[%emt 0:00:00]} 15. h4 {[%emt 0:13:02]} Qxb2 {[%emt 0:14:56]} 16. Qg4+ {[%emt 0:03:30]} Kh7 {[%emt 0:00:11]} 17. Qe4+ {[%emt 0:03:52]} f5 {[%emt 0:00:05]} 18. Qxa8 {[%emt 0:03:02]} Qb6 {[%emt 0:02:00]} 19. Ng5+ {[%emt 0:00:11]} hxg5 {[%emt 0:00:06]} 20. hxg5+ {[%emt 0:00:05]} Kg8 {[%emt 0:00:28]} 21. Qf3 {[%emt 0:02:42]} Qa5+ {[%emt 0:00:07]} 22. Rd2 {[%emt 0:00:08]} Rd8 {[%emt 0:00:08]} 23. Qe3 {[%emt 0:00:31]} f4 {[%emt 0:00:20]} 24. Qxf4 {[%emt 0:05:10]} Qc3 {[%emt 0:00:03]} 25. Kd1 {[%emt 0:00:35]} Qa1+ {[%emt 0:04:50]} 26. Kc2 {[%emt 0:00:07]} Qa2+ {[%emt 0:00:03]} 27. Kc1 {[%emt 0:01:30]} Qa1+ {[%emt 0:00:41]} 28. Kc2 {[%emt 0:00:05]} Qa2+ {[%emt 0:00:42]} 29. Kc1 {[%emt 0:00:06]} Qa1+ {[%emt 0:01:04]} 1/2-1/2

[Event "Romanian Superliga 2024"]
[Site "Mamaia"]
[Date "2024.10.02"]
[Round "5.10"]
[White "Tampea, Radu"]
[Black "Musat, Adrian"]
[Result "1/2-1/2"]
[ECO "C47"]
[WhiteElo "2226"]
[BlackElo "2358"]
[Annotator "TA"]
[PlyCount "64"]
[EventDate "2024.09.26"]
[EventType "team-tourn"]
[EventCountry "ROU"]
[SourceTitle "playchess.com"]
[Source "ChessBase"]
[SourceQuality "1"]
[TimeControl "40/5400+30:1800+30"]

{[%evp 10,64,-21,-48,-31,-42,-43,-39,3,0,2,10,7,0,7,-32,-27,-37,-10,-31,-22,-42,-42,-99,-84,-83,-55,-110,-127,-133,-125,-131,-81,-84,-86,-71,-69,-71,-68,-67,-68,-69,-61,-61,-64,-60,-63,-69,-66,-70,-69,-66,-48,-66,-52,-63,0]} 1. e4 {[%emt 0:00:07]} e5 {[%emt 0:00:09][%cal Be7e5,Be5d4][%mdl 32]} 2. Nf3 {[%emt 0:00:10]} Nc6 {[%emt 0:00:06]} 3. Nc3 {[%emt 0:00:33]} Nf6 {[%emt 0:00:11]} 4. d4 {[%emt 0:00:24]} exd4 {[%emt 0:00:24]} 5. Nd5 {[%emt 0:00:33]} Nb4 {[%emt 0:02:42]} 6. Bc4 {[%emt 0:00:44]} Nbxd5 {[%emt 0:11:45]} 7. exd5 {[%emt 0:01:37][%cal Oe1g1]} Bb4+ {[%emt 0:08:24]} 8. Kf1 {[%emt 0:01:59]} c6 {[%emt 0:18:57][%cal Bc7c6,Bc6d5][%mdl 32]} 9. Qxd4 {[%emt 0:14:52]} cxd5 $1 {[%emt 0:04:38]} 10. Bd3 {[%emt 0:00:53]} Be7 {[%emt 0:04:38]} 11. b3 {[%emt 0:26:18]} d6 {[%emt 0:03:19]} 12. h3 {[%emt 0:01:55]} O-O {[%emt 0:01:51]} 13. Bb2 {[%emt 0:00:06]} Be6 {[%emt 0:01:36]} 14. g4 {[%emt 0:21:00]} Ne8 {[%emt 0:03:01] [#] Droht stark ...Bf6.} 15. Qe3 {[%emt 0:07:44]} Bf6 {[%emt 0:04:52]} 16. Nd4 {[%emt 0:01:20]} (16. Bd4 $15) 16... Bd7 {[%emt 0:00:34]} 17. f4 {[%emt 0:01:55][%cal Bf2f4,Bf4f5][%mdl 32]} g6 {[%emt 0:03:25]} 18. Qf3 {[%emt 0:08:24]} ({Günstiger ist} 18. Kg2 $15) 18... Nc7 $17 {[%emt 0:01:28]} 19. f5 {[%emt 0:00:36] [#] Pariert Ne6.} Ne6 $1 {[%emt 0:04:19][%mdl 512]} 20. Qf2 {[%emt 0:01:19]} (20. fxe6 $2 {geht unter.} fxe6 21. Bf5 Bxd4 (21... exf5 $2 22. g5 $19) 22. Bxd4 e5 (22... exf5 $2 23. Kg1 $19) (22... gxf5 $2 23. Rg1 $19) 23. Qxd5+ Kh8 $19) 20... Nxd4 {[%emt 0:10:41]} ({Besser ist} 20... Nc5 21. Kg2 Ne4 22. Bxe4 dxe4) 21. Bxd4 {[%emt 0:00:01]} Bxd4 22. Qxd4 {[%emt 0:00:01]} Qh4 {[%emt 0:01:44]} 23. fxg6 {[%emt 0:06:58]} fxg6+ {[%emt 0:00:16]} 24. Kg2 {[%emt 0:00:00][%cal Oh1f1] Schwarz steht etwas besser.} Bc6 {[%emt 0:00:11]} 25. Rhf1 {[%emt 0:00:11]} Rae8 {[%emt 0:00:48]} 26. Rxf8+ {[%emt 0:00:15]} Rxf8 {[%emt 0:00:07]} 27. Rf1 {[%emt 0:00:13]} Rxf1 {[%emt 0:01:03]} 28. Bxf1 {[%emt 0:00:00][%cal Ob3b4]} Qe1 {[%emt 0:01:03]} 29. Bd3 {[%emt 0:00:08]} Qe5 {[%emt 0:01:30]} 30. c3 {[%emt 0:00:05]} a6 {[%emt 0:01:25]} 31. Bf1 {[%emt 0:01:27]} Qe1 {[%emt 0:02:20]} 32. Bd3 {[%emt 0:03:06]} Qe5 {[%emt 0:04:05] Gewichteter Fehlerwert: Weiß=0.11 (sehr präzise) /Schwarz=0.08 (makellos) .  Fehler:       	Weiß=2     	Schwarz=2     Ungenau:       	Weiß=1     	Schwarz=3     OK:         	Weiß=10    	Schwarz=11    Bester:       	Weiß=2     	---        Stark:        	---       	Schwarz=1} (32... Kf7 $15) 1/2-1/2